[Event "*** Titled Tuesday Blitz"]
[Site "Chess.com"]
[Date "2019.04.02"]
[Round "2"]
[White "olksuna"]
[Black "Yoshkinkot"]
[Result "1/2-1/2"]
[WhiteElo "2498"]
[BlackElo "2542"]
[TimeControl "180+2"]
[EndTime "14:22:34 PDT"]
[Termination "Game drawn by repetition"]

1. c4 {[%clk 0:02:40.2]} 1... c5 {[%clk 0:02:52.6]} 2. Nc3 {[%clk 0:02:40.2]}
2... Nc6 {[%clk 0:02:53.4]} 3. g3 {[%clk 0:02:40.2]} 3... g6 {[%clk 0:02:54.7]}
4. Bg2 {[%clk 0:02:41.7]} 4... Bg7 {[%clk 0:02:55.7]} 5. Nf3 {[%clk 0:02:43.3]}
5... Nf6 {[%clk 0:02:54.2]} 6. O-O {[%clk 0:02:43.8]} 6... O-O {[%clk
0:02:55.3]} 7. d4 {[%clk 0:02:45.2]} 7... cxd4 {[%clk 0:02:56.6]} 8. Nxd4 {[%clk
0:02:46.6]} 8... Ng4 {[%clk 0:02:58]} 9. e3 {[%clk 0:02:40]} 9... d6 {[%clk
0:02:58.9]} 10. b3 {[%clk 0:02:25]} 10... Nxd4 {[%clk 0:02:56.4]} 11. exd4
{[%clk 0:02:25.3]} 11... Nh6 {[%clk 0:02:58]} 12. Bb2 {[%clk 0:02:24.1]} 12...
Nf5 {[%clk 0:02:58]} 13. d5 {[%clk 0:02:23.7]} 13... Re8 {[%clk 0:02:56]} 14.
Rb1 {[%clk 0:02:14.7]} 14... a6 {[%clk 0:02:56.7]} 15. Ne4 {[%clk 0:02:05.9]}
15... b5 {[%clk 0:02:50.2]} 16. c5 {[%clk 0:02:01.5]} 16... dxc5 {[%clk
0:02:46.1]} 17. Nxc5 {[%clk 0:02:01.1]} 17... Bxb2 {[%clk 0:02:45.7]} 18. Rxb2
{[%clk 0:02:02]} 18... Nd6 {[%clk 0:02:44]} 19. Re1 {[%clk 0:02:00.8]} 19... Ra7
{[%clk 0:02:38.1]} 20. h4 {[%clk 0:01:42.4]} 20... Qb6 {[%clk 0:02:37.9]} 21. b4
{[%clk 0:01:42.4]} 21... Nb7 {[%clk 0:02:16.6]} 22. Qd4 {[%clk 0:01:34.5]} 22...
Nd6 {[%clk 0:02:10.8]} 23. h5 {[%clk 0:01:33.5]} 23... Nf5 {[%clk 0:02:06.4]}
24. Qc3 {[%clk 0:01:27.3]} 24... gxh5 {[%clk 0:01:18.4]} 25. Rbe2 {[%clk
0:01:25.3]} 25... Qg6 {[%clk 0:00:58.2]} 26. Be4 {[%clk 0:01:25.1]} 26... h4
{[%clk 0:00:52.6]} 27. Bxf5 {[%clk 0:00:53.9]} 27... Bxf5 {[%clk 0:00:51.5]} 28.
Re5 {[%clk 0:00:55.4]} 28... hxg3 {[%clk 0:00:47.6]} 29. fxg3 {[%clk 0:00:57.3]}
29... Bc8 {[%clk 0:00:24.5]} 30. Qe3 {[%clk 0:00:54.9]} 30... h6 {[%clk
0:00:22]} 31. d6 {[%clk 0:00:47.1]} 31... Be6 {[%clk 0:00:11.8]} 32. Nxe6 {[%clk
0:00:45.4]} 32... exd6 {[%clk 0:00:13.1]} 33. Re4 {[%clk 0:00:17.1]} 33... Rae7
{[%clk 0:00:13.4]} 34. Nc5 {[%clk 0:00:13.9]} 34... dxc5 {[%clk 0:00:10.6]} 35.
Rxe7 {[%clk 0:00:14.2]} 35... Rxe7 {[%clk 0:00:12.2]} 36. Qxe7 {[%clk 0:00:15]}
36... Qxg3+ {[%clk 0:00:13.9]} 37. Kf1 {[%clk 0:00:16.1]} 37... Qf3+ {[%clk
0:00:15.1]} 38. Kg1 {[%clk 0:00:17.6]} 38... Qg3+ {[%clk 0:00:16.8]} 39. Kh1
{[%clk 0:00:19.1]} 39... Qh3+ {[%clk 0:00:18.4]} 40. Kg1 {[%clk 0:00:20.5]}
40... Qg3+ {[%clk 0:00:20]} 41. Kf1 {[%clk 0:00:22.4]} 41... Qf3+ {[%clk
0:00:21.7]} 42. Kg1 {[%clk 0:00:24]} 42... Qg3+ {[%clk 0:00:23.4]} 43. Kh1
{[%clk 0:00:25.6]} 43... Qh3+ {[%clk 0:00:25.1]} 44. Kg1 {[%clk 0:00:27.2]}
44... Qg3+ {[%clk 0:00:26.7]} 1/2-1/2

[Event "*** Titled Tuesday Blitz"]
[Site "Chess.com"]
[Date "2019.04.02"]
[Round "2"]
[White "Ali_rastbod"]
[Black "wonderfultime"]
[Result "0-1"]
[WhiteElo "2603"]
[BlackElo "2915"]
[TimeControl "180+2"]
[EndTime "14:22:46 PDT"]
[Termination "wonderfultime won by resignation"]

1. Nf3 {[%clk 0:02:55.7]} 1... Nf6 {[%clk 0:03:00.2]} 2. c4 {[%clk 0:02:56.4]}
2... c6 {[%clk 0:03:01.2]} 3. g3 {[%clk 0:02:55]} 3... d5 {[%clk 0:03:02.4]} 4.
Bg2 {[%clk 0:02:56.6]} 4... Bg4 {[%clk 0:03:03.5]} 5. Qb3 {[%clk 0:02:55.1]}
5... Qc8 {[%clk 0:02:46.9]} 6. Ne5 {[%clk 0:02:46.8]} 6... dxc4 {[%clk
0:02:36.6]} 7. Qxc4 {[%clk 0:02:30.7]} 7... Be6 {[%clk 0:02:37.7]} 8. Qc2 {[%clk
0:02:31.1]} 8... g6 {[%clk 0:02:35.1]} 9. b3 {[%clk 0:02:29.6]} 9... Bg7 {[%clk
0:02:36.2]} 10. Bb2 {[%clk 0:02:31.2]} 10... O-O {[%clk 0:02:37.9]} 11. O-O
{[%clk 0:02:32.7]} 11... Nbd7 {[%clk 0:02:32.1]} 12. d3 {[%clk 0:02:26.6]} 12...
Nxe5 {[%clk 0:02:30]} 13. Bxe5 {[%clk 0:02:28.5]} 13... Bh3 {[%clk 0:02:27.8]}
14. Nd2 {[%clk 0:02:23.7]} 14... Rd8 {[%clk 0:02:28.1]} 15. Nc4 {[%clk
0:02:22.6]} 15... Qe6 {[%clk 0:02:24.1]} 16. Qb2 {[%clk 0:02:19.4]} 16... Bxg2
{[%clk 0:02:12.7]} 17. Kxg2 {[%clk 0:02:18.8]} 17... Rd5 {[%clk 0:02:14.6]} 18.
Bc3 {[%clk 0:02:16.1]} 18... Rh5 {[%clk 0:02:13.8]} 19. Rh1 {[%clk 0:02:01.6]}
19... Qh3+ {[%clk 0:01:47.2]} 20. Kg1 {[%clk 0:01:58.4]} 20... Ng4 {[%clk
0:01:43.9]} 21. f3 {[%clk 0:01:37.8]} 21... Nf6 {[%clk 0:00:30.3]} 22. e4 {[%clk
0:01:33]} 22... Rd8 {[%clk 0:00:30.8]} 23. Rd1 {[%clk 0:01:32.8]} 23... Rg5
{[%clk 0:00:22.8]} 24. Qg2 {[%clk 0:01:27.4]} 24... Qe6 {[%clk 0:00:22.8]} 25.
Qe2 {[%clk 0:00:47]} 25... Nh5 {[%clk 0:00:17.1]} 26. Bxg7 {[%clk 0:00:47.3]}
26... Nxg7 {[%clk 0:00:19]} 27. Qe3 {[%clk 0:00:43.8]} 27... Qf6 {[%clk
0:00:18.1]} 28. Kf2 {[%clk 0:00:32.3]} 28... Ne6 {[%clk 0:00:14.8]} 29. h3
{[%clk 0:00:24.3]} 29... Rb5 {[%clk 0:00:12.9]} 30. e5 {[%clk 0:00:21.8]} 30...
Qf5 {[%clk 0:00:12]} 31. f4 {[%clk 0:00:20.9]} 31... g5 {[%clk 0:00:12.7]} 32.
Kf3 {[%clk 0:00:19.7]} 32... gxf4 {[%clk 0:00:13.8]} 33. gxf4 {[%clk 0:00:21.3]}
33... Rd4 {[%clk 0:00:15.3]} 34. Rhg1+ {[%clk 0:00:21.2]} 34... Kf8 {[%clk
0:00:16.6]} 35. Kg3 {[%clk 0:00:12.8]} 35... Rbd5 {[%clk 0:00:15.4]} 36. Kh2
{[%clk 0:00:10.1]} 36... Rxd3 {[%clk 0:00:15.6]} 37. Rxd3 {[%clk 0:00:11.1]}
37... Rxd3 {[%clk 0:00:17.5]} 0-1

[Event "*** Titled Tuesday Blitz"]
[Site "Chess.com"]
[Date "2019.04.02"]
[Round "2"]
[White "enriquetejedor"]
[Black "fm_magua"]
[Result "1/2-1/2"]
[WhiteElo "2518"]
[BlackElo "2517"]
[TimeControl "180+2"]
[EndTime "14:22:46 PDT"]
[Termination "Game drawn by repetition"]

1. e4 {[%clk 0:03:01.9]} 1... c5 {[%clk 0:02:59.8]} 2. Nf3 {[%clk 0:03:02.9]}
2... Nc6 {[%clk 0:03:00.7]} 3. Bb5 {[%clk 0:03:04.1]} 3... g6 {[%clk 0:03:01.5]}
4. Bxc6 {[%clk 0:03:05.3]} 4... dxc6 {[%clk 0:03:03.4]} 5. h3 {[%clk 0:03:05.3]}
5... e5 {[%clk 0:03:01.4]} 6. O-O {[%clk 0:03:06.3]} 6... f6 {[%clk 0:03:02.5]}
7. d3 {[%clk 0:03:05]} 7... b6 {[%clk 0:03:03.2]} 8. a3 {[%clk 0:03:05.9]} 8...
a5 {[%clk 0:03:04.1]} 9. Nbd2 {[%clk 0:03:03.5]} 9... Ra7 {[%clk 0:03:05]} 10.
Nc4 {[%clk 0:03:04.2]} 10... Be6 {[%clk 0:03:05.3]} 11. Nfd2 {[%clk 0:03:03.9]}
11... g5 {[%clk 0:03:04.8]} 12. Rb1 {[%clk 0:02:55.8]} 12... h5 {[%clk
0:03:05.1]} 13. c3 {[%clk 0:02:54.5]} 13... h4 {[%clk 0:02:53.9]} 14. Qe2 {[%clk
0:02:47.6]} 14... g4 {[%clk 0:02:53.8]} 15. hxg4 {[%clk 0:02:48.4]} 15... Rg7
{[%clk 0:02:50.1]} 16. Ne3 {[%clk 0:02:49.4]} 16... Nh6 {[%clk 0:02:49.5]} 17.
f3 {[%clk 0:02:50.2]} 17... h3 {[%clk 0:02:47]} 18. gxh3 {[%clk 0:02:50.2]}
18... Nf7 {[%clk 0:02:47.9]} 19. Nf5 {[%clk 0:02:49.1]} 19... Rgh7 {[%clk
0:02:45.2]} 20. h4 {[%clk 0:02:48.3]} 20... Bxf5 {[%clk 0:02:46]} 21. exf5
{[%clk 0:02:48.7]} 21... Rxh4 {[%clk 0:02:47]} 22. Qe4 {[%clk 0:02:44]} 22...
Ng5 {[%clk 0:02:34]} 23. Qxc6+ {[%clk 0:02:44.4]} 23... Kf7 {[%clk 0:02:35.4]}
24. Ne4 {[%clk 0:02:41.6]} 24... Rh1+ {[%clk 0:02:31.6]} 25. Kf2 {[%clk
0:02:41.2]} 25... R8h2+ {[%clk 0:02:30.5]} 26. Kg3 {[%clk 0:02:29.9]} 26... Rh3+
{[%clk 0:02:04.1]} 27. Kg2 {[%clk 0:02:23.5]} 27... R3h2+ {[%clk 0:01:05.3]} 28.
Kg3 {[%clk 0:02:24.5]} 28... Rh3+ {[%clk 0:00:42]} 29. Kf2 {[%clk 0:02:02.4]}
29... Rxf1+ {[%clk 0:00:41.6]} 30. Kg2 {[%clk 0:02:03.8]} 30... Qxd3 {[%clk
0:00:14.2]} 31. Nxg5+ {[%clk 0:02:00.1]} 31... Kg7 {[%clk 0:00:14.8]} 32. Nxh3
{[%clk 0:00:05.6]} 32... Qe2+ {[%clk 0:00:15.2]} 33. Kg3 {[%clk 0:00:07.1]}
33... Qe1+ {[%clk 0:00:16.3]} 34. Kg2 {[%clk 0:00:08.3]} 34... Qe2+ {[%clk
0:00:14.8]} 35. Kg3 {[%clk 0:00:09.8]} 35... Qe1+ {[%clk 0:00:16.1]} 36. Kg2
{[%clk 0:00:06]} 36... Qe2+ {[%clk 0:00:17.2]} 37. Kg3 {[%clk 0:00:06.2]} 37...
Qe1+ {[%clk 0:00:17.1]} 38. Kg2 {[%clk 0:00:06.3]} 38... Qe2+ {[%clk 0:00:12.7]}
1/2-1/2

[Event "*** Titled Tuesday Blitz"]
[Site "Chess.com"]
[Date "2019.04.02"]
[Round "2"]
[White "Artooooo"]
[Black "Maitreia"]
[Result "0-1"]
[WhiteElo "2724"]
[BlackElo "2685"]
[TimeControl "180+2"]
[EndTime "14:22:50 PDT"]
[Termination "Maitreia won by resignation"]

1. b3 {[%clk 0:03:01.8]} 1... Nf6 {[%clk 0:03:00.3]} 2. Bb2 {[%clk 0:03:03.1]}
2... g6 {[%clk 0:03:02.2]} 3. e4 {[%clk 0:03:04.1]} 3... Bg7 {[%clk 0:02:58.8]}
4. e5 {[%clk 0:03:04.6]} 4... Nd5 {[%clk 0:02:57.4]} 5. c4 {[%clk 0:03:03.6]}
5... Nb6 {[%clk 0:02:58]} 6. Nc3 {[%clk 0:03:03.3]} 6... c5 {[%clk 0:02:48]} 7.
Nf3 {[%clk 0:02:52.4]} 7... Nc6 {[%clk 0:02:48.7]} 8. d4 {[%clk 0:02:18.6]} 8...
cxd4 {[%clk 0:02:48.3]} 9. Nb5 {[%clk 0:02:18.6]} 9... O-O {[%clk 0:01:56.1]}
10. Nbxd4 {[%clk 0:01:54.5]} 10... Nxe5 {[%clk 0:01:50.6]} 11. Nxe5 {[%clk
0:01:24.9]} 11... Bxe5 {[%clk 0:01:52.5]} 12. Ne6 {[%clk 0:01:12.1]} 12... dxe6
{[%clk 0:01:20.2]} 13. Bxe5 {[%clk 0:01:11]} 13... f6 {[%clk 0:01:12.3]} 14. Bc3
{[%clk 0:01:02.9]} 14... Qxd1+ {[%clk 0:01:09.9]} 15. Rxd1 {[%clk 0:01:04.8]}
15... e5 {[%clk 0:01:11.8]} 16. c5 {[%clk 0:00:48.4]} 16... Nd7 {[%clk
0:01:00.5]} 17. Bc4+ {[%clk 0:00:49]} 17... Kg7 {[%clk 0:00:57]} 18. Bb4 {[%clk
0:00:49.6]} 18... Nb8 {[%clk 0:00:55.9]} 19. f3 {[%clk 0:00:40.1]} 19... Nc6
{[%clk 0:00:56.6]} 20. Ba3 {[%clk 0:00:35.8]} 20... Rd8 {[%clk 0:00:54.1]} 21.
Kf2 {[%clk 0:00:26.1]} 21... h5 {[%clk 0:00:43.9]} 22. b4 {[%clk 0:00:22.9]}
22... Bf5 {[%clk 0:00:40.8]} 23. b5 {[%clk 0:00:18.5]} 23... Nd4 {[%clk
0:00:42.1]} 24. h3 {[%clk 0:00:10.9]} 24... h4 {[%clk 0:00:42.6]} 25. Bb2 {[%clk
0:00:11.8]} 25... Rac8 {[%clk 0:00:42.1]} 26. Ba3 {[%clk 0:00:11.8]} 26... g5
{[%clk 0:00:30]} 27. Rd2 {[%clk 0:00:08.5]} 27... Nc2 {[%clk 0:00:30.8]} 28.
Rxd8 {[%clk 0:00:08.6]} 28... Rxd8 {[%clk 0:00:32.7]} 29. Bc1 {[%clk 0:00:10.2]}
29... Rc8 {[%clk 0:00:27.8]} 30. c6 {[%clk 0:00:11.2]} 30... bxc6 {[%clk
0:00:29.3]} 31. a4 {[%clk 0:00:12.6]} 31... cxb5 {[%clk 0:00:29.4]} 32. Bxb5
{[%clk 0:00:14.5]} 32... Nd4 {[%clk 0:00:30.1]} 33. Ba6 {[%clk 0:00:15.4]} 33...
Rc2+ {[%clk 0:00:30.1]} 34. Ke3 {[%clk 0:00:17.3]} 34... Ra2 {[%clk 0:00:24.3]}
35. Bd2 {[%clk 0:00:12.3]} 35... Rxa4 {[%clk 0:00:21.5]} 36. Bb7 {[%clk
0:00:13.9]} 36... Ra3+ {[%clk 0:00:21.8]} 37. Kf2 {[%clk 0:00:15.4]} 37... Ra2
{[%clk 0:00:22.4]} 38. Ke3 {[%clk 0:00:16.5]} 38... Nc2+ {[%clk 0:00:22.8]} 39.
Kf2 {[%clk 0:00:18.2]} 39... Na3 {[%clk 0:00:21.9]} 40. Rc1 {[%clk 0:00:18.6]}
40... Rxd2+ {[%clk 0:00:22]} 0-1

[Event "*** Titled Tuesday Blitz"]
[Site "Chess.com"]
[Date "2019.04.02"]
[Round "2"]
[White "Gentlejimmy7"]
[Black "BlackBoarder"]
[Result "1-0"]
[WhiteElo "2431"]
[BlackElo "2522"]
[TimeControl "180+2"]
[EndTime "14:22:53 PDT"]
[Termination "Gentlejimmy7 won on time"]

1. d4 {[%clk 0:03:01.9]} 1... e6 {[%clk 0:03:00.3]} 2. g3 {[%clk 0:03:02.1]}
2... Nf6 {[%clk 0:03:00.7]} 3. Bg2 {[%clk 0:03:03.5]} 3... d5 {[%clk 0:03:01.7]}
4. Nf3 {[%clk 0:03:03.5]} 4... c5 {[%clk 0:03:00.1]} 5. O-O {[%clk 0:03:05.4]}
5... Nc6 {[%clk 0:02:57.4]} 6. c4 {[%clk 0:03:06.1]} 6... dxc4 {[%clk
0:02:56.6]} 7. Qa4 {[%clk 0:03:07.1]} 7... Bd7 {[%clk 0:02:23.6]} 8. dxc5 {[%clk
0:03:06.1]} 8... Bxc5 {[%clk 0:02:15.2]} 9. Qxc4 {[%clk 0:03:05.5]} 9... Qe7
{[%clk 0:02:13.7]} 10. Bg5 {[%clk 0:03:04.6]} 10... Bb6 {[%clk 0:02:07.9]} 11.
Nc3 {[%clk 0:03:04.5]} 11... h6 {[%clk 0:02:05.2]} 12. Bxf6 {[%clk 0:03:03.4]}
12... Qxf6 {[%clk 0:02:06.9]} 13. Na4 {[%clk 0:03:04.6]} 13... O-O {[%clk
0:01:48.8]} 14. Nxb6 {[%clk 0:02:58.4]} 14... axb6 {[%clk 0:01:50.7]} 15. Rfd1
{[%clk 0:02:59]} 15... Na5 {[%clk 0:01:38.7]} 16. Qb4 {[%clk 0:02:55.5]} 16...
Bc6 {[%clk 0:01:38.8]} 17. Rac1 {[%clk 0:02:44.4]} 17... Bd5 {[%clk 0:01:24.6]}
18. Qxb6 {[%clk 0:02:35.9]} 18... Nc4 {[%clk 0:01:20.4]} 19. Qd4 {[%clk
0:02:33]} 19... Nxb2 {[%clk 0:01:10.4]} 20. Qxf6 {[%clk 0:02:31.5]} 20... gxf6
{[%clk 0:01:11.1]} 21. Rd2 {[%clk 0:02:31.5]} 21... Rxa2 {[%clk 0:01:05.1]} 22.
Nd4 {[%clk 0:02:32.5]} 22... Rd8 {[%clk 0:00:48.5]} 23. Rb1 {[%clk 0:02:25.3]}
23... Na4 {[%clk 0:00:28]} 24. Rxa2 {[%clk 0:02:10.3]} 24... Bxa2 {[%clk
0:00:29]} 25. Ra1 {[%clk 0:02:11.2]} 25... Rxd4 {[%clk 0:00:19.4]} 26. Rxa2
{[%clk 0:02:12.6]} 26... b5 {[%clk 0:00:17]} 27. e3 {[%clk 0:02:12.4]} 27...
Rd1+ {[%clk 0:00:15.9]} 28. Bf1 {[%clk 0:02:13.8]} 28... Nc3 {[%clk 0:00:15.9]}
29. Rb2 {[%clk 0:02:14.6]} 29... Rd5 {[%clk 0:00:11.5]} 30. Kg2 {[%clk
0:02:15.1]} 30... Rc5 {[%clk 0:00:12.1]} 31. Bd3 {[%clk 0:02:15]} 31... Kf8
{[%clk 0:00:11.6]} 32. f4 {[%clk 0:02:12.6]} 32... Ke7 {[%clk 0:00:12.3]} 33.
Kf2 {[%clk 0:02:13.4]} 33... Kd6 {[%clk 0:00:13.7]} 34. e4 {[%clk 0:02:14.6]}
34... Kc6 {[%clk 0:00:14.3]} 35. Rb3 {[%clk 0:02:14]} 35... Kb6 {[%clk
0:00:13.6]} 36. Ke3 {[%clk 0:02:14.8]} 36... e5 {[%clk 0:00:12.4]} 37. Kd2
{[%clk 0:02:06.7]} 37... Na4 {[%clk 0:00:10.6]} 38. Rb1 {[%clk 0:02:05.4]} 38...
Nc3 {[%clk 0:00:09.3]} 39. Rf1 {[%clk 0:02:04.2]} 39... Rc7 {[%clk 0:00:04.3]}
40. fxe5 {[%clk 0:02:04.4]} 40... fxe5 {[%clk 0:00:06.2]} 41. Rf6+ {[%clk
0:02:05.3]} 41... Ka5 {[%clk 0:00:07.5]} 42. Rxh6 {[%clk 0:02:06.3]} 42... Kb4
{[%clk 0:00:07.3]} 43. Rh5 {[%clk 0:02:07]} 43... f6 {[%clk 0:00:07.8]} 44. Rh6
{[%clk 0:02:04.2]} 44... Rc6 {[%clk 0:00:08.1]} 45. g4 {[%clk 0:02:05.4]} 45...
Ra6 {[%clk 0:00:08.3]} 46. Bc2 {[%clk 0:02:03]} 46... Rd6+ {[%clk 0:00:07.3]}
47. Ke3 {[%clk 0:02:01.2]} 47... Kc5 {[%clk 0:00:07.5]} 48. h4 {[%clk
0:02:00.3]} 48... Ra6 {[%clk 0:00:04.1]} 49. g5 {[%clk 0:02:00.6]} 49... Ra2
{[%clk 0:00:05]} 50. Bb3 {[%clk 0:01:37.9]} 50... Rb2 {[%clk 0:00:04.1]} 51.
gxf6 {[%clk 0:01:32.7]} 51... Rxb3 {[%clk 0:00:03.8]} 52. f7 {[%clk 0:01:34.6]}
52... Nd5+ {[%clk 0:00:03.3]} 53. Kf2 {[%clk 0:01:33.1]} 53... Rb2+ {[%clk
0:00:02.2]} 54. Kf3 {[%clk 0:01:31.5]} 54... Rb3+ {[%clk 0:00:03.6]} 55. Kg4
{[%clk 0:01:27.1]} 1-0

[Event "*** Titled Tuesday Blitz"]
[Site "Chess.com"]
[Date "2019.04.02"]
[Round "2"]
[White "Vrolijk"]
[Black "GMJimKnopf"]
[Result "1-0"]
[WhiteElo "2853"]
[BlackElo "2363"]
[TimeControl "180+2"]
[EndTime "14:22:57 PDT"]
[Termination "Vrolijk won by resignation"]

1. Nf3 {[%clk 0:03:01.9]} 1... g6 {[%clk 0:03:00.8]} 2. g3 {[%clk 0:03:01.2]}
2... Bg7 {[%clk 0:03:01.5]} 3. Bg2 {[%clk 0:03:02.7]} 3... d5 {[%clk 0:03:02.8]}
4. O-O {[%clk 0:03:03.4]} 4... e5 {[%clk 0:03:03.4]} 5. d3 {[%clk 0:03:04.6]}
5... Ne7 {[%clk 0:03:02.8]} 6. e4 {[%clk 0:03:06.1]} 6... O-O {[%clk 0:03:02.8]}
7. exd5 {[%clk 0:03:07]} 7... Nxd5 {[%clk 0:03:03.5]} 8. Re1 {[%clk 0:03:08.6]}
8... Re8 {[%clk 0:03:04.2]} 9. Nc3 {[%clk 0:03:08.5]} 9... Nxc3 {[%clk
0:03:04.7]} 10. bxc3 {[%clk 0:03:10.1]} 10... Bd7 {[%clk 0:03:05.8]} 11. Bg5
{[%clk 0:03:03.9]} 11... f6 {[%clk 0:03:04.8]} 12. Be3 {[%clk 0:03:00.2]} 12...
Bc6 {[%clk 0:03:05.6]} 13. c4 {[%clk 0:02:56.9]} 13... Nd7 {[%clk 0:03:05.6]}
14. Rb1 {[%clk 0:02:56.4]} 14... Nf8 {[%clk 0:02:59.9]} 15. Nd2 {[%clk
0:02:57.2]} 15... Bxg2 {[%clk 0:03:00]} 16. Kxg2 {[%clk 0:02:59.1]} 16... b6
{[%clk 0:03:00.3]} 17. Qf3 {[%clk 0:02:59.4]} 17... Ne6 {[%clk 0:02:59.1]} 18.
Qd5 {[%clk 0:02:59.8]} 18... Qe7 {[%clk 0:02:47.1]} 19. Nb3 {[%clk 0:02:45.4]}
19... f5 {[%clk 0:02:45.9]} 20. Bd2 {[%clk 0:02:42.9]} 20... Rad8 {[%clk
0:02:41.4]} 21. Qb7 {[%clk 0:02:43.8]} 21... Qd6 {[%clk 0:02:22]} 22. Bc3 {[%clk
0:02:27.9]} 22... a5 {[%clk 0:02:18.8]} 23. a4 {[%clk 0:02:13.7]} 23... Rb8
{[%clk 0:01:59.5]} 24. Qd5 {[%clk 0:02:13.2]} 24... Qxd5+ {[%clk 0:01:27.5]} 25.
cxd5 {[%clk 0:02:12.6]} 25... Nd4 {[%clk 0:01:29.4]} 26. Bxd4 {[%clk 0:01:59.9]}
26... exd4 {[%clk 0:01:31.3]} 27. d6 {[%clk 0:01:50.6]} 27... Rxe1 {[%clk
0:01:03.9]} 28. dxc7 {[%clk 0:01:43.5]} 28... Rc8 {[%clk 0:01:03]} 29. Rxe1
{[%clk 0:01:43.9]} 29... Rxc7 {[%clk 0:01:04.4]} 30. Re8+ {[%clk 0:01:36.8]}
30... Kf7 {[%clk 0:01:04.3]} 31. Rb8 {[%clk 0:01:38.1]} 31... Rxc2 {[%clk
0:00:48.1]} 32. Rb7+ {[%clk 0:01:38.1]} 32... Kg8 {[%clk 0:00:33.9]} 33. Rxb6
{[%clk 0:01:38.8]} 33... Rc3 {[%clk 0:00:27.2]} 34. Nxa5 {[%clk 0:01:40]} 34...
Rxd3 {[%clk 0:00:27.4]} 35. Nc6 {[%clk 0:01:30.2]} 35... Ra3 {[%clk 0:00:26.5]}
36. a5 {[%clk 0:01:31.5]} 36... d3 {[%clk 0:00:27.3]} 37. Rb8+ {[%clk
0:01:14.3]} 37... Kf7 {[%clk 0:00:27.7]} 38. Rd8 {[%clk 0:01:14.9]} 38... Bf6
{[%clk 0:00:21.8]} 39. Rd6 {[%clk 0:01:12]} 39... Be7 {[%clk 0:00:21.5]} 40.
Rxd3 {[%clk 0:01:05.7]} 40... Rxd3 {[%clk 0:00:21.2]} 41. Ne5+ {[%clk 0:01:07]}
41... Ke6 {[%clk 0:00:22.6]} 42. Nxd3 {[%clk 0:01:08.4]} 42... Kd5 {[%clk
0:00:23.8]} 43. Kf3 {[%clk 0:01:06]} 43... Kc4 {[%clk 0:00:24.1]} 44. Nf4 {[%clk
0:00:57.6]} 44... Bd6 {[%clk 0:00:23.5]} 45. Ne6 {[%clk 0:00:56.1]} 45... Kd5
{[%clk 0:00:23.2]} 46. Ng5 {[%clk 0:00:56.6]} 46... h6 {[%clk 0:00:23.8]} 47.
Nf7 {[%clk 0:00:54.7]} 47... Bf8 {[%clk 0:00:25.2]} 48. a6 {[%clk 0:00:52.5]}
48... Kc6 {[%clk 0:00:26.4]} 49. Ne5+ {[%clk 0:00:53.4]} 49... Kb6 {[%clk
0:00:28]} 50. Nxg6 {[%clk 0:00:55.3]} 50... Bd6 {[%clk 0:00:28.7]} 51. Nh4
{[%clk 0:00:56.6]} 51... f4 {[%clk 0:00:30.2]} 52. g4 {[%clk 0:00:58]} 52...
Kxa6 {[%clk 0:00:31.5]} 53. Nf5 {[%clk 0:00:59.3]} 53... Bf8 {[%clk 0:00:33.1]}
54. h4 {[%clk 0:01:00.3]} 54... Kb5 {[%clk 0:00:35]} 55. Kxf4 {[%clk 0:01:01.5]}
55... Kc5 {[%clk 0:00:36.6]} 56. Ke5 {[%clk 0:01:02.7]} 1-0

[Event "*** Titled Tuesday Blitz"]
[Site "Chess.com"]
[Date "2019.04.02"]
[Round "2"]
[White "Alex_Terzi"]
[Black "fu24"]
[Result "1-0"]
[WhiteElo "2433"]
[BlackElo "2519"]
[TimeControl "180+2"]
[EndTime "14:23:04 PDT"]
[Termination "Alex_Terzi won by resignation"]

1. e4 {[%clk 0:03:01.9]} 1... e6 {[%clk 0:03:01.9]} 2. d4 {[%clk 0:03:02.9]}
2... d5 {[%clk 0:03:03]} 3. e5 {[%clk 0:03:04.5]} 3... c5 {[%clk 0:03:04]} 4. c3
{[%clk 0:03:06]} 4... Nc6 {[%clk 0:03:05.6]} 5. Nf3 {[%clk 0:03:07.1]} 5... Bd7
{[%clk 0:03:07.2]} 6. Be2 {[%clk 0:03:05.5]} 6... f6 {[%clk 0:03:08.2]} 7. exf6
{[%clk 0:03:04.3]} 7... Nxf6 {[%clk 0:03:09.2]} 8. O-O {[%clk 0:03:05.6]} 8...
Bd6 {[%clk 0:03:02.8]} 9. Re1 {[%clk 0:03:03.6]} 9... O-O {[%clk 0:03:03.5]} 10.
Bf1 {[%clk 0:03:02.8]} 10... Qc7 {[%clk 0:03:04.4]} 11. h3 {[%clk 0:02:52]}
11... Rae8 {[%clk 0:02:51.8]} 12. Bg5 {[%clk 0:02:50.8]} 12... h6 {[%clk
0:02:28.7]} 13. Be3 {[%clk 0:02:39.8]} 13... c4 {[%clk 0:02:20.7]} 14. Nbd2
{[%clk 0:02:37.1]} 14... e5 {[%clk 0:02:15]} 15. dxe5 {[%clk 0:02:37.1]} 15...
Nxe5 {[%clk 0:02:16.9]} 16. Nxe5 {[%clk 0:02:37.6]} 16... Bxe5 {[%clk
0:01:45.6]} 17. Nf3 {[%clk 0:02:37.4]} 17... Bd6 {[%clk 0:01:45.6]} 18. Nh4
{[%clk 0:01:59.6]} 18... Bc6 {[%clk 0:01:07.8]} 19. Ng6 {[%clk 0:01:58]} 19...
Rf7 {[%clk 0:01:08]} 20. Bd4 {[%clk 0:01:51.2]} 20... Ne4 {[%clk 0:00:21.6]} 21.
Qc2 {[%clk 0:01:52.1]} 21... Bh2+ {[%clk 0:00:17.1]} 22. Kh1 {[%clk 0:01:52.9]}
22... Qd6 {[%clk 0:00:18.4]} 23. Nh4 {[%clk 0:01:42.9]} 23... Be5 {[%clk
0:00:18.9]} 24. f3 {[%clk 0:01:23.2]} 24... Bxd4 {[%clk 0:00:11.9]} 25. fxe4
{[%clk 0:01:23.4]} 25... Bb6 {[%clk 0:00:07.5]} 26. exd5 {[%clk 0:01:10.5]}
26... Rxe1 {[%clk 0:00:09.4]} 27. Rxe1 {[%clk 0:01:10.1]} 27... Qxd5 {[%clk
0:00:11.3]} 28. Nf3 {[%clk 0:01:00.6]} 28... Qh5 {[%clk 0:00:09.1]} 29. Bxc4
{[%clk 0:00:58.5]} 29... Bxf3 {[%clk 0:00:09.4]} 30. Bxf7+ {[%clk 0:00:58.3]}
30... Qxf7 {[%clk 0:00:09.8]} 31. gxf3 {[%clk 0:00:58.6]} 31... Qxf3+ {[%clk
0:00:11.3]} 32. Qg2 {[%clk 0:00:59.5]} 32... Qf7 {[%clk 0:00:11.2]} 33. Qe4
{[%clk 0:00:56.5]} 33... Qxa2 {[%clk 0:00:05.8]} 34. Qe6+ {[%clk 0:00:48.9]}
34... Qxe6 {[%clk 0:00:06.5]} 35. Rxe6 {[%clk 0:00:50.6]} 35... Kf7 {[%clk
0:00:08.4]} 36. Rd6 {[%clk 0:00:51.2]} 36... Ke7 {[%clk 0:00:09.2]} 37. Rg6
{[%clk 0:00:51.6]} 37... Kf7 {[%clk 0:00:10.4]} 38. Rd6 {[%clk 0:00:48.4]} 38...
Ke7 {[%clk 0:00:11.7]} 39. Rd3 {[%clk 0:00:49.1]} 39... Ke6 {[%clk 0:00:12.9]}
40. Kg2 {[%clk 0:00:50.4]} 40... Bc7 {[%clk 0:00:13.5]} 41. Kf3 {[%clk
0:00:51.4]} 41... a5 {[%clk 0:00:15]} 42. Ke4 {[%clk 0:00:51.9]} 42... b5 {[%clk
0:00:16.4]} 43. Rd5 {[%clk 0:00:52.1]} 43... b4 {[%clk 0:00:15.8]} 44. c4 {[%clk
0:00:50.4]} 44... a4 {[%clk 0:00:16.3]} 45. c5 {[%clk 0:00:34]} 45... a3 {[%clk
0:00:14.9]} 46. bxa3 {[%clk 0:00:34.8]} 46... bxa3 {[%clk 0:00:16.8]} 47. Rd3
{[%clk 0:00:34.8]} 47... Ba5 {[%clk 0:00:13.8]} 48. Rxa3 {[%clk 0:00:34.8]}
48... Bb4 {[%clk 0:00:15.7]} 49. Ra6+ {[%clk 0:00:35.9]} 49... Kd7 {[%clk
0:00:17.3]} 50. Kd5 {[%clk 0:00:35.6]} 1-0